[Event "Czech Youth U14 Boys 2024"]
[Site "Kouty nad Desnou"]
[Date "2024.03.11"]
[Round "4.1"]
[White "Svadlenka, Michal"]
[Black "Soucek, Andrej"]
[Result "1/2-1/2"]
[ECO "C50"]
[WhiteElo "1869"]
[BlackElo "1825"]
[Annotator "NA RC"]
[PlyCount "73"]
[EventDate "2024.03.10"]
[EventType "swiss"]
[EventCountry "CZE"]
[SourceTitle "playchess.com"]
[Source "ChessBase"]
[SourceQuality "1"]
[TimeControl "40/5400+30:1800+30"]

1. e4 {[%emt 0:00:02]} e5 {[%emt 0:00:11]} 2. Nf3 {[%emt 0:00:09]} Nc6 {[%emt 0:00:09]} 3. Bc4 {[%emt 0:00:10]} Nf6 {[%emt 0:00:10]} 4. d3 {[%emt 0:00:05]} Bc5 {[%emt 0:00:33]} 5. c3 {[%emt 0:00:21]} a6 {[%emt 0:00:21]} 6. Bb3 {[%emt 0:00:09]} d6 {[%emt 0:00:45]} 7. Nbd2 {[%emt 0:01:52]} Ba7 {[%emt 0:00:49]} 8. Nf1 {[%emt 0:01:11]} Be6 {[%emt 0:02:40] C54: Giuoco Piano: 4 c3 Nf6, main lines with 5 d4 and 5 d3.} 9. Ng3 {[%emt 0:13:02]} d5 {[%emt 0:16:03] 9...Qd7 is setting a new trend.} (9... h6 $11 {feels stronger.}) 10. O-O $146 {[%emt 0:03:54]} (10. Bg5 $14) ({Predecessor:} 10. Qe2 O-O 11. Bg5 d4 12. Nh5 Nxh5 13. Bxd8 Nf4 14. Qc2 Raxd8 15. Bxe6 fxe6 16. O-O dxc3 17. bxc3 Rxd3 {1-0 Gokerkan,C (2452)-Jones,G (2688) Chess24 Banter Blitz Cup 2019 (1.11)}) 10... Qd7 {[%emt 0:06:23]} 11. exd5 {[%emt 0:07:20]} Bxd5 {[%emt 0:00:41]} 12. Be3 {[%emt 0:01:59]} Bxe3 {[%emt 0:15:27]} 13. fxe3 {[%emt 0:00:13]} O-O {[%emt 0:01:29]} 14. d4 {[%emt 0:12:26]} exd4 {[%emt 0:03:39]} 15. exd4 {[%emt 0:00:27]} Rae8 {[%emt 0:02:38]} 16. Bxd5 {[%emt 0:06:39]} Qxd5 {[%emt 0:03:10]} 17. Qd3 {[%emt 0:05:29]} Qe6 {[%emt 0:08:29]} 18. Rfe1 {[%emt 0:02:17]} Qd7 {[%emt 0:02:43]} 19. b3 {[%emt 0:08:31]} Rxe1+ {[%emt 0:01:25]} 20. Rxe1 {[%emt 0:00:20]} Re8 {[%emt 0:00:26]} 21. Ne4 {[%emt 0:01:22]} Nxe4 {[%emt 0:00:49]} 22. Rxe4 {[%emt 0:00:03]} Rxe4 {[%emt 0:00:23]} 23. Qxe4 {[%emt 0:00:04]} f6 {[%emt 0:04:14]} 24. d5 {[%emt 0:05:37]} Ne7 {[%emt 0:00:58]} 25. c4 {[%emt 0:01:23]} c6 {[%emt 0:01:18]} 26. dxc6 {[%emt 0:01:04]} Nxc6 {[%emt 0:00:47]} 27. Kf2 {[%emt 0:00:52]} Qe7 {[%emt 0:01:19]} 28. Qxe7 {[%emt 0:01:29]} Nxe7 {[%emt 0:00:05]} 29. Ke3 {[%emt 0:01:20]} Kf7 {[%emt 0:04:36]} 30. Kd4 {[%emt 0:02:59]} Ke6 {[%emt 0:05:50]} 31. g4 {[%emt 0:05:54]} ({White should try} 31. Kc5 $16 Nc8 32. a4) 31... Kd6 {[%emt 0:04:54]} 32. a3 {[%emt 0:03:18]} g6 {[%emt 0:01:31]} 33. b4 {[%emt 0:01:21]} Nc6+ {[%emt 0:01:16]} 34. Ke4 {[%emt 0:00:02]} b6 $11 {[%emt 0:00:18]} 35. h4 {[%emt 0:06:18]} Nd8 {[%emt 0:02:25]} 36. h5 {[%emt 0:02:21]} Nc6 {[%emt 0:03:02]} 37. hxg6 1/2-1/2

[Event "Czech Youth U14 Boys 2024"]
[Site "Kouty nad Desnou"]
[Date "2024.03.11"]
[Round "4.2"]
[White "Popov, Roman"]
[Black "Mydlar, Matej"]
[Result "1/2-1/2"]
[ECO "A30"]
[WhiteElo "2353"]
[BlackElo "1819"]
[Annotator "TA"]
[PlyCount "66"]
[EventDate "2024.03.10"]
[EventType "swiss"]
[EventCountry "CZE"]
[SourceTitle "playchess.com"]
[Source "ChessBase"]
[SourceQuality "1"]
[TimeControl "40/5400+30:1800+30"]

{[%evp 20,66,39,32,39,39,56,40,55,52,57,51,56,53,66,9,47,44,38,35,5,7,15,18,98,112,88,95,93,92,245,248,376,187,342,7,535,508,760,145,363,-17,-16,-17,-14,-4,0,-27,-19]} 1. c4 {[%emt 0:00:22]} c5 {[%emt 0:00:09]} 2. Nf3 {[%emt 0:00:16]} g6 {[%emt 0:01:05]} 3. d4 {[%emt 0:00:46]} cxd4 {[%emt 0:00:42]} 4. Nxd4 {[%emt 0:00:08]} Bg7 {[%emt 0:00:05]} 5. Nc3 {[%emt 0:00:20]} Nc6 {[%emt 0:00:48]} 6. Nc2 {[%emt 0:00:17]} Nf6 {[%emt 0:00:33]} 7. g3 {[%emt 0:00:20]} O-O {[%emt 0:00:07]} 8. Bg2 {[%emt 0:00:08]} d6 {[%emt 0:00:04]} 9. O-O {[%emt 0:00:19]} Bd7 {[%emt 0:00:55]} 10. b3 {[%emt 0:02:05]} Rc8 {[%emt 0:02:36]} 11. Bb2 {[%emt 0:00:56]} Qc7 {[%emt 0:01:54]} 12. Qd2 {[%emt 0:03:59]} Rfe8 {[%emt 0:03:36]} 13. Ne3 {[%emt 0:04:26]} Qb8 {[%emt 0:05:23] Weiß steht etwas besser.} 14. Rad1 {[%emt 0:09:55]} Ne5 {[%emt 0:04:32]} 15. Ncd5 {[%emt 0:07:30]} Nxd5 {[%emt 0:05:17]} 16. Nxd5 {[%emt 0:01:24]} (16. Qxd5 b5 $11) 16... b5 {[%emt 0:02:47]} 17. cxb5 {[%emt 0:08:31] Weiß steht aktiver.} (17. f4 $14 Nc6 18. Bxg7 Kxg7 19. Qe3) 17... Bxb5 {[%emt 0:02:45]} 18. Rc1 {[%emt 0:02:59]} Ba6 {[%emt 0:21:12][%cal Oe5c4]} 19. Qa5 {[%emt 0:18:02]} Bxe2 {[%emt 0:14:53]} 20. Rxc8 {[%emt 0:07:03]} Qxc8 {[%emt 0:01:10]} 21. Rc1 {[%emt 0:07:02]} Qf5 {[%emt 0:02:10] [#]} (21... Qb8 $11) 22. Nxe7+ $1 $16 {[%emt 0:10:50]} Rxe7 {[%emt 0:00:32]} 23. Qd8+ {[%emt 0:00:06]} Bf8 {[%emt 0:03:38] ...Nd3 wäre nun fies.} 24. Rc8 $1 $36 {[%emt 0:00:14][%csl Gc8][%cal Rd8f8][%mdl 2048] Schwarz muss aufpassen.} Qb1+ $2 {[%emt 0:02:56]} (24... Nd7 $16 {war angesagt.} 25. Qxe7 Ba6 (25... Qb1+ $2 26. Bc1 $18) 26. Rxf8+ Nxf8) 25. Bc1 $18 {[%emt 0:00:08][%csl Gc8][%cal Rd8f8]} Kg7 {[%emt 0:02:21]} (25... Nd7 $142 26. Qxe7 Qxc1+ 27. Rxc1 Bxe7) 26. Qxf8+ {[%emt 0:00:41]} Kf6 {[%emt 0:00:07][%cal Oe2c4]} 27. Bh3 $2 {[%emt 0:12:21]} ({Der einzige Zug:} 27. Rc3 $18 Bb5 28. h3) 27... Ng4 $2 {[%emt 0:02:16][%mdl 8192]} (27... Bg4 $1 $11 {und Schwarz ist OK.} 28. Bxg4 Nxg4 29. Qh8+ Kf5) 28. Qh8+ {[%emt 0:00:24]} Kf5 {[%emt 0:02:33]} 29. Qc3 {[%emt 0:02:32] Gegen Qd3 gerichtet.} (29. Qxh7 {ist ein Selbstmatt.} Qd3 30. Bxg4+ Bxg4) (29. Qd4 $18 {ist viel giftiger.} Qe4 30. Qxd6) 29... Qe4 $2 {[%emt 0:03:36] [#]} (29... Qd3 $16 30. Qxd3+ Bxd3) 30. Bxg4+ $2 {[%emt 0:00:43]} ({Weiss braucht} 30. Qd2 $1 $18 {[%cal Rd2d6]} Bf3 31. Bf1 (31. Qxd6 $2 {wird mattgesetzt.} Qe1+ 32. Bf1 Qxf2#)) 30... Kxg4 $11 {[%emt 0:04:03]} 31. Qe3 {[%emt 0:00:33] Tanz auf der Rasierklinge.} Qxe3 {[%emt 0:02:40]} 32. Bxe3 {[%emt 0:00:07]} d5 {[%emt 0:00:32]} 33. Rd8 {[%emt 0:00:55]} Bf3 {[%emt 0:00:19] Gewichteter Fehlerwert: Weiß=0.78/Schwarz=0.77.  Verlustzug:     	---       	Schwarz=2     Gewinn verpasst:   	Weiß=2     	---        Fehler:       	Weiß=1     	Schwarz=3     Ungenau:       	Weiß=1     	Schwarz=3     OK:         	Weiß=7     	Schwarz=5     Bester:       	Weiß=3     	Schwarz=2     Stark:        	Weiß=1     	---        Brilliant:      	Weiß=1     	---} 1/2-1/2

[Event "Czech Youth U14 Boys 2024"]
[Site "Kouty nad Desnou"]
[Date "2024.03.11"]
[Round "4.3"]
[White "Vana, Jan"]
[Black "Martirosyan, David"]
[Result "1-0"]
[ECO "B12"]
[WhiteElo "1908"]
[BlackElo "1981"]
[Annotator "RC"]
[PlyCount "61"]
[EventDate "2024.03.10"]
[EventType "swiss"]
[EventCountry "CZE"]
[SourceTitle "playchess.com"]
[Source "ChessBase"]
[SourceQuality "1"]
[TimeControl "40/5400+30:1800+30"]

1. e4 {[%emt 0:00:02]} c6 {[%emt 0:00:27]} 2. d4 {[%emt 0:00:09]} d5 {[%emt 0:00:05]} 3. e5 {[%emt 0:00:05]} c5 {[%emt 0:00:09]} 4. dxc5 {[%emt 0:01:01]} e6 {[%emt 0:00:07]} 5. Be3 {[%emt 0:01:05]} Nd7 {[%emt 0:00:27]} 6. Nf3 {[%emt 0:01:11]} Bxc5 {[%emt 0:01:33]} 7. Bxc5 {[%emt 0:00:32]} Nxc5 {[%emt 0:00:08]} 8. Qd4 {[%emt 0:01:11]} Qc7 {[%emt 0:03:37]} 9. Nc3 {[%emt 0:16:11]} a6 {[%emt 0:03:14]} 10. Be2 {[%emt 0:06:34]} Ne7 {[%emt 0:03:28]} 11. O-O-O {[%emt 0:06:04]} O-O {[%emt 0:07:14]} 12. h4 {[%emt 0:07:20]} b5 {[%emt 0:04:37]} 13. Bd3 {[%emt 0:05:39]} Rb8 {[%emt 0:18:41]} 14. Kb1 {[%emt 0:20:11]} b4 {[%emt 0:06:04]} 15. Ne2 {[%emt 0:00:51]} a5 {[%emt 0:01:16]} 16. Ng3 {[%emt 0:04:00]} Nxd3 {[%emt 0:06:36]} 17. Qxd3 {[%emt 0:05:08]} h6 {[%emt 0:04:16]} 18. Nh5 {[%emt 0:03:44]} Ng6 {[%emt 0:03:44]} 19. Qd4 {[%emt 0:05:15]} Ba6 {[%emt 0:01:09]} 20. Rd2 {[%emt 0:03:24]} Rfc8 {[%emt 0:02:00]} 21. Qg4 {[%emt 0:01:05]} a4 {[%emt 0:04:14]} 22. Nxg7 {[%emt 0:04:24]} Kxg7 {[%emt 0:06:55]} 23. h5 {[%emt 0:01:02]} b3 {[%emt 0:03:40]} 24. hxg6 {[%emt 0:03:22]} bxc2+ {[%emt 0:02:32]} 25. Kc1 {[%emt 0:00:08]} Rxb2 {[%emt 0:05:35]} 26. gxf7+ {[%emt 0:00:31]} Kxf7 {[%emt 0:01:25]} 27. Ng5+ {[%emt 0:00:50]} hxg5 {[%emt 0:00:09]} 28. Qh5+ {[%emt 0:01:33]} Kf8 {[%emt 0:02:04]} 29. Qh8+ {[%emt 0:00:30]} Kf7 {[%emt 0:01:17]} 30. Qf6+ {[%emt 0:00:29]} Ke8 {[%emt 0:00:36]} 31. Qxe6+ {[%emt 0:00:54]} 1-0

[Event "Czech Youth U14 Boys 2024"]
[Site "Kouty nad Desnou"]
[Date "2024.03.11"]
[Round "4.4"]
[White "Topencik, Bruno"]
[Black "Sotek, Simon"]
[Result "1/2-1/2"]
[ECO "C08"]
[WhiteElo "2006"]
[BlackElo "1793"]
[Annotator "RC"]
[PlyCount "60"]
[EventDate "2024.03.10"]
[EventType "swiss"]
[EventCountry "CZE"]
[SourceTitle "playchess.com"]
[Source "ChessBase"]
[SourceQuality "1"]
[TimeControl "40/5400+30:1800+30"]

1. e4 {[%emt 0:00:29]} e6 {[%emt 0:00:26]} 2. d4 {[%emt 0:00:48]} d5 {[%emt 0:00:11]} 3. Nd2 {[%emt 0:01:06]} c5 {[%emt 0:00:09]} 4. exd5 {[%emt 0:00:54]} exd5 {[%emt 0:00:25]} 5. Ngf3 {[%emt 0:01:20]} c4 {[%emt 0:02:55]} 6. Be2 {[%emt 0:08:12]} Bd6 {[%emt 0:03:34]} 7. O-O {[%emt 0:00:30]} Nc6 {[%emt 0:03:41]} 8. b3 {[%emt 0:03:02]} b5 {[%emt 0:01:34]} 9. a4 {[%emt 0:05:28]} Qa5 {[%emt 0:13:08]} 10. Re1 {[%emt 0:05:02]} Nge7 {[%emt 0:01:46]} 11. Nf1 {[%emt 0:01:32]} Bg4 {[%emt 0:06:37]} 12. Bd2 {[%emt 0:03:29]} c3 {[%emt 0:10:31]} 13. axb5 {[%emt 0:04:41]} cxd2 {[%emt 0:01:10]} 14. N1xd2 {[%emt 0:01:09]} Qc7 {[%emt 0:01:30]} 15. bxc6 {[%emt 0:00:28]} O-O {[%emt 0:00:37]} 16. h3 {[%emt 0:02:52]} Bh5 {[%emt 0:01:28]} 17. c4 {[%emt 0:08:57]} dxc4 {[%emt 0:01:56]} 18. bxc4 {[%emt 0:01:51]} Nxc6 {[%emt 0:01:42]} 19. Qa4 {[%emt 0:12:25]} Bb4 {[%emt 0:02:32]} 20. d5 {[%emt 0:04:00]} Bxf3 {[%emt 0:01:06]} 21. Bxf3 {[%emt 0:06:48]} Bxd2 {[%emt 0:00:12]} 22. Red1 {[%emt 0:01:17]} Nd4 {[%emt 0:02:56]} 23. Rxd2 {[%emt 0:01:15]} Nxf3+ {[%emt 0:00:38]} 24. gxf3 {[%emt 0:00:03]} Qe5 {[%emt 0:01:24]} 25. Qd1 {[%emt 0:07:53]} Qg5+ {[%emt 0:03:25]} 26. Kh1 {[%emt 0:00:57]} Qh6 {[%emt 0:01:39]} 27. Kg2 {[%emt 0:00:29]} Qg5+ {[%emt 0:00:06]} 28. Kh1 {[%emt 0:00:08]} Qh6 {[%emt 0:00:04]} 29. Kg2 {[%emt 0:05:59]} Qg5+ {[%emt 0:00:11]} 30. Kh1 {[%emt 0:00:07]} Qh6 1/2-1/2

[Event "Czech Youth U14 Boys 2024"]
[Site "Kouty nad Desnou"]
[Date "2024.03.11"]
[Round "4.5"]
[White "Kutil, Adam"]
[Black "Roubal, Matyas"]
[Result "1/2-1/2"]
[ECO "B30"]
[WhiteElo "1820"]
[BlackElo "1849"]
[Annotator "NA"]
[PlyCount "68"]
[EventDate "2024.03.10"]
[EventType "swiss"]
[EventCountry "CZE"]
[SourceTitle "playchess.com"]
[Source "ChessBase"]
[SourceQuality "1"]
[TimeControl "40/5400+30:1800+30"]

1. e4 {[%emt 0:00:07]} c5 {[%emt 0:00:09]} 2. Nf3 {[%emt 0:00:08]} Nc6 {[%emt 0:00:10]} 3. d3 {[%emt 0:00:39]} g6 {[%emt 0:01:24]} 4. g3 {[%emt 0:00:20]} Bg7 {[%emt 0:00:31]} 5. Bg2 {[%emt 0:00:10]} e6 {[%emt 0:04:00]} 6. Nbd2 {[%emt 0:00:32]} Nge7 {[%emt 0:00:56]} 7. O-O {[%emt 0:00:26]} d5 {[%emt 0:02:25]} 8. c3 {[%emt 0:04:01]} O-O {[%emt 0:02:37]} 9. Re1 {[%emt 0:00:42]} dxe4 {[%emt 0:05:38]} 10. dxe4 {[%emt 0:00:33]} Qc7 {[%emt 0:04:39]} 11. Qc2 {[%emt 0:01:49]} e5 {[%emt 0:07:50]} 12. Nf1 {[%emt 0:09:11]} h6 {[%emt 0:06:11]} 13. Be3 {[%emt 0:07:23]} b6 {[%emt 0:01:16]} 14. Rad1 {[%emt 0:00:52]} Be6 {[%emt 0:00:46]} 15. Bc1 {[%emt 0:05:09]} Rad8 {[%emt 0:05:41]} 16. Ne3 {[%emt 0:06:38]} c4 {[%emt 0:04:39]} 17. Nd2 $14 {[%emt 0:13:22]} Na5 {[%emt 0:04:57]} 18. Ndf1 {[%emt 0:09:36]} Nb7 {[%emt 0:04:34]} 19. Rxd8 {[%emt 0:05:37]} Rxd8 {[%emt 0:00:12]} 20. Rd1 {[%emt 0:00:22]} Nc5 {[%emt 0:00:44]} 21. Rxd8+ {[%emt 0:02:54]} Qxd8 {[%emt 0:00:05]} 22. Nd1 {[%emt 0:02:50]} f5 {[%emt 0:02:16]} 23. f3 {[%emt 0:02:00]} Nd3 {[%emt 0:04:32]} 24. Bd2 {[%emt 0:03:36]} Nc6 {[%emt 0:01:20]} 25. Nf2 {[%emt 0:00:52]} Na5 {[%emt 0:02:17]} 26. Ne3 {[%emt 0:05:09]} f4 {[%emt 0:02:17]} 27. Ned1 {[%emt 0:01:42]} g5 {[%emt 0:00:45]} 28. Bf1 {[%emt 0:03:02]} Nc5 {[%emt 0:01:14]} 29. Bh3 {[%emt 0:02:41]} Bxh3 {[%emt 0:01:04]} 30. Nxh3 {[%emt 0:00:08]} b5 {[%emt 0:06:57]} 31. Kg2 {[%emt 0:03:03]} Qa8 {[%emt 0:02:48]} 32. Nhf2 {[%emt 0:01:58]} h5 {[%emt 0:00:24]} 33. g4 {[%emt 0:02:07]} h4 {[%emt 0:00:38]} 34. Be1 {[%emt 0:00:46]} Qd8 {[%emt 0:02:50]} 1/2-1/2

[Event "Czech Youth U14 Boys 2024"]
[Site "Kouty nad Desnou"]
[Date "2024.03.11"]
[Round "4.6"]
[White "Srba, Daniel"]
[Black "Kroulik, Vaclav"]
[Result "0-1"]
[ECO "B66"]
[WhiteElo "1742"]
[BlackElo "1936"]
[Annotator "RC"]
[PlyCount "56"]
[EventDate "2024.03.10"]
[EventType "swiss"]
[EventCountry "CZE"]
[SourceTitle "playchess.com"]
[Source "ChessBase"]
[SourceQuality "1"]
[TimeControl "40/5400+30:1800+30"]

1. e4 {[%emt 0:00:02]} c5 {[%emt 0:00:06]} 2. Nf3 {[%emt 0:00:05]} d6 {[%emt 0:00:13]} 3. d4 {[%emt 0:00:07]} cxd4 {[%emt 0:00:05]} 4. Nxd4 {[%emt 0:00:09]} Nf6 {[%emt 0:00:06]} 5. Nc3 {[%emt 0:00:06]} Nc6 {[%emt 0:00:15]} 6. Bg5 {[%emt 0:01:01]} e6 {[%emt 0:00:33]} 7. Qd2 {[%emt 0:00:40]} a6 {[%emt 0:00:27]} 8. O-O-O {[%emt 0:00:20]} h6 {[%emt 0:00:30]} 9. Bh4 {[%emt 0:04:32]} Nxe4 {[%emt 0:01:04]} 10. Nxc6 {[%emt 0:03:14]} Qxh4 {[%emt 0:02:35]} 11. Qd4 {[%emt 0:03:28]} Qf4+ {[%emt 0:06:02]} 12. Kb1 {[%emt 0:00:24]} Nxc3+ {[%emt 0:00:41]} 13. bxc3 {[%emt 0:00:05]} Qxd4 {[%emt 0:00:47]} 14. Nxd4 {[%emt 0:00:04]} Bd7 {[%emt 0:00:42]} 15. g3 {[%emt 0:01:37]} Rc8 {[%emt 0:00:36]} 16. Bg2 {[%emt 0:00:12]} Rc7 {[%emt 0:00:42]} 17. Rhe1 {[%emt 0:00:25]} Be7 {[%emt 0:00:36]} 18. f4 {[%emt 0:00:40]} O-O {[%emt 0:00:42]} 19. Re3 {[%emt 0:00:32]} Rfc8 {[%emt 0:02:16]} 20. Kb2 {[%emt 0:00:41]} Bf6 {[%emt 0:00:53]} 21. Rd2 {[%emt 0:06:17]} b5 {[%emt 0:04:18]} 22. a3 {[%emt 0:05:55]} a5 {[%emt 0:00:18]} 23. Ne2 {[%emt 0:04:31]} d5 {[%emt 0:04:16]} 24. Kb3 {[%emt 0:01:12]} Rc4 {[%emt 0:03:34]} 25. Bf1 {[%emt 0:01:24]} a4+ {[%emt 0:03:32]} 26. Kb2 {[%emt 0:00:37]} b4 {[%emt 0:00:25]} 27. axb4 {[%emt 0:01:18]} Rxb4+ {[%emt 0:00:06]} 28. Ka3 {[%emt 0:00:07]} Rb1 {[%emt 0:00:20]} 0-1

[Event "Czech Youth U14 Boys 2024"]
[Site "Kouty nad Desnou"]
[Date "2024.03.11"]
[Round "4.7"]
[White "Krivka, Matej"]
[Black "Migalko, Dmitriy"]
[Result "1-0"]
[ECO "A06"]
[WhiteElo "1850"]
[BlackElo "1896"]
[Annotator "NA RC"]
[PlyCount "63"]
[EventDate "2024.03.10"]
[EventType "swiss"]
[EventCountry "CZE"]
[SourceTitle "playchess.com"]
[Source "ChessBase"]
[SourceQuality "1"]
[TimeControl "40/5400+30:1800+30"]

1. Nf3 {[%emt 0:00:03]} d5 {[%emt 0:00:33]} 2. g3 {[%emt 0:00:07]} Nf6 {[%emt 0:00:22]} 3. Bg2 {[%emt 0:00:08]} e6 {[%emt 0:00:27]} 4. O-O {[%emt 0:00:27]} Be7 {[%emt 0:00:14]} 5. c4 {[%emt 0:00:47]} O-O {[%emt 0:00:27]} 6. d4 {[%emt 0:00:47]} dxc4 {[%emt 0:00:41]} 7. Ne5 {[%emt 0:01:17]} Nc6 {[%emt 0:01:37]} 8. Nxc6 {[%emt 0:01:42]} bxc6 {[%emt 0:00:10]} 9. Qc2 {[%emt 0:07:06] E05: Open Catalan: 5 Nf3 Be7.} Ba6 {[%emt 0:06:39]} (9... Qxd4 {might be stronger.} 10. Be3 Qe5) 10. Rd1 {[%emt 0:07:29]} Nd5 {[%emt 0:06:01]} 11. Na3 {[%emt 0:09:45]} (11. a3 $11) 11... Bxa3 {[%emt 0:07:27]} 12. bxa3 {[%emt 0:00:05]} f5 {[%emt 0:03:09]} 13. e4 {[%emt 0:05:23]} fxe4 {[%emt 0:01:08]} 14. Bxe4 {[%emt 0:00:12]} h6 {[%emt 0:01:00]} 15. Bd2 {[%emt 0:02:36]} (15. Bxh6 $5 Qf6 (15... gxh6 16. Bxd5 exd5 17. Qg6+ Kh8 18. Qxh6+ Kg8 19. Qg6+ Kh8 20. Qh6+ Kg8 21. Qg6+ Kh8 22. Qh6+ $11) 16. Be3 $11) 15... Rb8 {[%emt 0:19:11]} 16. Rab1 {[%emt 0:03:50]} Qe7 {[%emt 0:08:26]} 17. Rxb8 {[%emt 0:15:12]} Rxb8 {[%emt 0:00:25]} 18. Re1 {[%emt 0:01:09]} Qf6 $1 {[%emt 0:04:14]} ({Much weaker is} 18... Qxa3 19. Bxh6 Qc3 (19... gxh6 20. Bxd5 Qd3 21. Bxe6+ Kg7 22. Qc1 $16) 20. Bh7+ Kh8 21. Bxg7+ (21. Rxe6 $2 {loses.} Qxc2 22. Bxc2 gxh6 $19) 21... Kxg7 22. Qg6+ Kh8 23. Qxe6 $11) 19. Be3 {[%emt 0:03:55]} (19. Bb4 $15) 19... Kh8 {[%emt 0:10:17]} 20. h4 {[%emt 0:08:03]} (20. Qa4 $11 Rb6 21. Qa5) 20... Qf8 {[%emt 0:12:12]} 21. Bc1 {[%emt 0:02:51]} Qd6 {[%emt 0:05:13]} (21... Bb5 $15) 22. Bg2 {[%emt 0:02:10]} c3 {[%emt 0:07:15]} 23. Bh3 {[%emt 0:02:56]} Re8 {[%emt 0:01:12]} 24. Qg6 {[%emt 0:01:06]} Re7 {[%emt 0:01:27]} 25. Rxe6 {[%emt 0:03:08]} (25. Re5 $14 {sieht stärker aus.} Qd8 (25... c5 $2 26. Bxh6 $18) 26. a4 (26. Bxe6 Qe8 $11) (26. Rxe6 Bc8 $15)) 25... Rxe6 {[%emt 0:00:37]} 26. Bxe6 $11 {[%emt 0:00:59]} Ne7 {[%emt 0:02:22]} 27. Qe4 {[%emt 0:01:54]} Bd3 {[%emt 0:00:39]} 28. Qxd3 {[%emt 0:02:12]} Qxe6 {[%emt 0:00:02]} 29. Qxc3 {[%emt 0:01:52]} Qxa2 {[%emt 0:00:24]} 30. Qc5 {[%emt 0:01:00]} Qe6 {[%emt 0:00:40]} 31. Qe5 {[%emt 0:02:55]} Qd6 {[%emt 0:00:42]} 32. Bf4 {[%emt 0:01:36]} 1-0

[Event "Czech Youth U14 Boys 2024"]
[Site "Kouty nad Desnou"]
[Date "2024.03.11"]
[Round "4.8"]
[White "Stary, Vojtech"]
[Black "Komarek, Tobias"]
[Result "0-1"]
[ECO "A30"]
[WhiteElo "1950"]
[BlackElo "1822"]
[Annotator "RC"]
[PlyCount "100"]
[EventDate "2024.03.10"]
[EventType "swiss"]
[EventCountry "CZE"]
[SourceTitle "playchess.com"]
[Source "ChessBase"]
[SourceQuality "1"]
[TimeControl "40/5400+30:1800+30"]

1. c4 {[%emt 0:00:02]} c5 {[%emt 0:02:21]} 2. Nf3 {[%emt 0:00:09]} Nc6 {[%emt 0:00:53]} 3. d4 {[%emt 0:00:08]} cxd4 {[%emt 0:01:44]} 4. Nxd4 {[%emt 0:00:12]} g6 {[%emt 0:00:38]} 5. g3 {[%emt 0:00:16]} Bg7 {[%emt 0:00:14]} 6. Nc2 {[%emt 0:00:26]} Nf6 {[%emt 0:01:10]} 7. Bg2 {[%emt 0:00:09]} d6 {[%emt 0:00:47]} 8. Nc3 {[%emt 0:00:48]} O-O {[%emt 0:04:29]} 9. O-O {[%emt 0:00:37]} Be6 {[%emt 0:07:50]} 10. b3 {[%emt 0:00:39]} Nd7 {[%emt 0:03:31]} 11. Bb2 {[%emt 0:02:12]} Nc5 {[%emt 0:02:43]} 12. Qd2 {[%emt 0:06:49]} a6 {[%emt 0:11:11]} 13. Ne3 {[%emt 0:08:24]} Qc8 {[%emt 0:06:04]} 14. Rfd1 {[%emt 0:04:26]} Bh3 {[%emt 0:03:59]} 15. Ned5 {[%emt 0:05:23]} Bxg2 {[%emt 0:02:37]} 16. Kxg2 {[%emt 0:01:03]} Nd7 {[%emt 0:01:23]} 17. e4 {[%emt 0:07:25]} Qd8 {[%emt 0:05:28]} 18. Ne2 {[%emt 0:17:47]} Bxb2 {[%emt 0:01:34]} 19. Qxb2 {[%emt 0:00:32]} Nb6 {[%emt 0:00:46]} 20. Rac1 {[%emt 0:01:51]} Nxd5 {[%emt 0:05:35]} 21. exd5 {[%emt 0:02:19]} Ne5 {[%emt 0:00:58]} 22. Nd4 {[%emt 0:02:04]} Nd7 {[%emt 0:01:34]} 23. f4 {[%emt 0:01:23]} Qc8 {[%emt 0:11:01]} 24. f5 {[%emt 0:02:26]} Ne5 {[%emt 0:00:30]} 25. Qd2 {[%emt 0:05:21]} Kg7 {[%emt 0:08:35]} 26. Rf1 {[%emt 0:01:21]} b6 {[%emt 0:01:39]} 27. Qg5 {[%emt 0:03:38]} f6 {[%emt 0:03:54]} 28. Qe3 {[%emt 0:01:14]} Qb7 {[%emt 0:02:43]} 29. Ne6+ {[%emt 0:00:12]} Kg8 {[%emt 0:00:09]} 30. fxg6 {[%emt 0:01:57]} hxg6 {[%emt 0:00:08]} 31. Rf4 {[%emt 0:05:05]} Rf7 {[%emt 0:07:50]} 32. Rcf1 {[%emt 0:03:45]} b5 {[%emt 0:00:50]} 33. Rh4 {[%emt 0:01:27]} Rh7 {[%emt 0:00:14]} 34. Rxh7 {[%emt 0:01:17]} Kxh7 {[%emt 0:00:08]} 35. Rf4 {[%emt 0:01:47]} bxc4 {[%emt 0:00:19]} 36. Rh4+ {[%emt 0:00:11]} Kg8 {[%emt 0:00:04]} 37. bxc4 {[%emt 0:03:16]} Nxc4 {[%emt 0:02:09]} 38. Rh8+ {[%emt 0:01:45]} Kf7 {[%emt 0:00:25]} 39. Rh7+ {[%emt 0:00:19]} Ke8 {[%emt 0:00:09]} 40. Ng7+ {[%emt 0:04:19]} Kf8 {[%emt 0:00:33]} 41. Qh6 {[%emt 0:10:11]} Qxd5+ {[%emt 0:00:08]} 42. Kh3 {[%emt 0:00:34]} Kg8 {[%emt 0:04:04]} 43. Qxg6 {[%emt 0:01:46]} Qg5 {[%emt 0:02:21]} 44. Qb1 {[%emt 0:11:09]} f5 {[%emt 0:02:55]} 45. Rh4 {[%emt 0:02:20]} Kxg7 {[%emt 0:02:48]} 46. Rxc4 {[%emt 0:00:49]} Rh8+ {[%emt 0:01:12]} 47. Kg2 {[%emt 0:00:10]} Qd2+ {[%emt 0:00:11]} 48. Kf1 {[%emt 0:00:26]} Rxh2 {[%emt 0:00:51]} 49. Qa1+ {[%emt 0:00:20]} e5 {[%emt 0:00:15]} 50. Rc7+ {[%emt 0:00:13]} Kf6 {[%emt 0:00:14]} 0-1